bitfinex-derivatives/quotes_ETHF0:USTF0_20250804
["timestamp","ask_amount","ask_price","bid_price","bid_amount"]
[1754333069148,1.7825,3672.1,3672.0,0.83008]
[1754333069449,1.7845,3672.1,3672.0,0.2855]
[1754333070050,1.7812,3671.9,3671.8,0.8301]
[1754333070255,1.0794,3671.6,3670.8,0.4495]
[1754333070546,19.107,3672.1,3672.0,1.9462]
[1754333070547,1.7825,3672.1,3672.0,1.9462]
[1754333070739,0.54456,3672.2,3672.0,1.4967]
[1754333070941,1.7825,3673.3,3673.2,1.0771]
[1754333071249,1.7845,3673.3,3673.2,0.2855]
[1754333071449,0.3598,3672.3,3672.2,0.99404]
[1754333071749,1.7845,3672.2,3672.1,0.54456]
[1754333072149,1.7845,3672.2,3672.0,0.54457]
[1754333072346,0.7064,3672.2,3672.1,0.735]
[1754333072745,1.228,3672.6,3672.5,1.4265]
[1754333073046,1.7825,3672.6,3672.5,1.97099]
[1754333073250,1.7812,3672.6,3672.5,2.49069]
[1754333073452,1.7812,3672.6,3672.5,3.04989]
[1754333073852,1.7812,3672.6,3672.5,2.49069]
[1754333074051,1.7812,3672.6,3672.5,1.9462]
[1754333074351,0.7051,3673.2,3673.1,0.2855]
[1754333074650,1.7825,3673.2,3673.1,1.9462]
[1754333075047,1.7812,3673.2,3673.1,1.9462]
[1754333076048,0.5236,3673.2,3673.1,2.5054]
[1754333076253,0.8834,3673.5,3673.4,3.04977]
[1754333076653,1.7812,3673.5,3673.4,2.49057]
[1754333076857,1.7825,3673.5,3673.4,2.49057]
[1754333077257,1.7825,3673.5,3673.4,1.9462]
[1754333078359,1.7812,3673.5,3673.4,1.9462]
[1754333079653,1.7812,3673.5,3673.4,2.5054]
[1754333080057,1.7812,3673.5,3673.4,1.9462]
[1754333080455,1.7845,3673.5,3673.4,1.4265]
[1754333081051,1.7812,3673.5,3673.4,1.9462]
[1754333081758,1.7825,3673.5,3673.4,1.9462]
[1754333082662,1.7845,3673.5,3673.4,1.9462]
[1754333084758,1.7812,3673.0,3672.9,2.49065]
[1754333085061,1.7825,3673.4,3673.3,1.97089]
[1754333085262,1.7845,3673.4,3673.3,2.49059]
[1754333085461,1.7845,3673.4,3673.3,1.97089]
[1754333085660,1.7845,3673.4,3673.3,1.27939]
[1754333086365,1.62379,3673.3,3673.1,0.54441]
[1754333086559,1.7845,3673.2,3673.1,0.54441]
[1754333087258,2.32891,3673.2,3673.0,0.99392]
[1754333087458,1.7845,3673.1,3673.0,1.27942]
[1754333088064,1.7845,3673.1,3673.0,1.97092]
[1754333088860,1.7845,3673.1,3673.0,2.49062]
[1754333089062,0.5236,3673.1,3673.0,3.04982]
[1754333089366,1.7812,3673.6,3673.5,2.49055]
[1754333089861,1.7845,3673.5,3673.4,0.54437]
[1754333090065,1.7845,3673.5,3673.4,2.49057]
[1754333090661,1.7845,3673.5,3673.4,0.82987]
[1754333090960,1.7845,3673.5,3673.4,1.97087]
[1754333091167,1.7845,3673.5,3673.4,2.49057]
[1754333091561,1.7825,3673.5,3673.4,2.49057]
[1754333091764,1.7812,3673.5,3673.4,2.49057]
[1754333091958,1.7812,3673.5,3673.4,3.04977]
[1754333092865,1.2267,3673.5,3673.4,3.04977]
[1754333094573,1.7812,3673.5,3673.4,3.04977]
[1754333095269,1.2267,3673.5,3673.4,3.04977]
[1754333096375,1.7778,3673.5,3673.4,3.04977]
[1754333097073,1.2267,3673.5,3673.4,2.49057]
[1754333097569,3.2078,3674.3,3674.2,0.54425]
[1754333097761,2.53003297,3674.3,3674.2,2.55485]
[1754333097961,2.53003297,3674.3,3674.2,3.07155]
[1754333098164,1.779,3674.3,3674.2,3.07155]
[1754333098767,1.78,3674.3,3674.2,2.55485]
[1754333099172,1.7816,3674.3,3674.2,2.55485]
[1754333100374,1.7816,3674.3,3674.2,2.00155]
[1754333101174,2.00847445,3674.8,3674.7,2.00148]
[1754333101477,1.2573,3674.8,3674.7,3.07148]
[1754333101667,1.779,3674.8,3674.7,3.07148]
[1754333102672,0.7062,3675.1,3675.0,3.07144]
[1754333103173,1.2279,3675.6,3675.5,1.0331]
[1754333103371,1.779,3675.6,3675.5,2.55466]
[1754333103574,1.2279,3675.6,3675.5,2.55466]
[1754333103771,1.779,3675.6,3675.5,2.55466]
[1754333104080,1.779,3675.6,3675.5,6.27916]
[1754333104570,1.78,3675.6,3675.5,5.76246]
[1754333105274,1.779,3675.6,3675.5,5.76246]
[1754333105475,1.779,3675.6,3675.5,5.7351]
[1754333105663,1.779,3675.6,3675.5,3.571]
[1754333105868,1.7816,3675.6,3675.5,3.2078]
[1754333106178,1.7816,3675.6,3675.5,3.5188]
[1754333106379,1.7816,3675.6,3675.5,4.6651]
[1754333107176,1.2573,3675.0,3674.9,2.55475]
[1754333107378,1.779,3675.0,3674.9,2.55475]
[1754333107777,1.78,3675.0,3674.9,2.0106]
[1754333108576,1.779,3675.0,3674.9,2.5273]
[1754333108983,0.5217,3675.8,3675.2,1.8531]
[1754333109273,1.2279,3675.8,3675.7,5.2184]
[1754333109478,1.2279,3675.8,3675.7,5.7351]
[1754333109674,1.78,3675.8,3675.7,5.2184]
[1754333110974,1.779,3675.8,3675.7,5.2184]
[1754333111174,1.2279,3675.8,3675.7,5.7351]
[1754333111679,1.779,3675.8,3675.7,5.7351]
[1754333111885,2.2573,3676.0,3675.9,2.0106]
[1754333112087,2.2583,3676.0,3675.9,2.0106]
[1754333112585,2.7816,3676.0,3675.9,2.0106]
[1754333113289,0.7078,3675.8,3675.7,3.2078]
[1754333113481,1.7816,3675.8,3675.7,3.2078]
[1754333113985,1.3479,3676.0,3675.9,0.3589]
[1754333114181,1.7088,3676.0,3675.9,1.4573]
[1754333114375,1.7088,3676.0,3675.8,0.5533]
[1754333114376,0.7088,3675.8,3675.7,3.2078]
[1754333114579,1.7816,3675.8,3675.7,3.2078]
[1754333117383,1.7816,3675.8,3675.7,3.5188]
[1754333117576,1.7816,3675.8,3675.7,3.943]
[1754333118386,1.7816,3675.8,3675.7,4.3062]
[1754333119285,1.78,3675.8,3675.7,4.6651]
[1754333119479,1.7816,3675.8,3675.7,5.2184]
[1754333119781,1.7816,3675.8,3675.7,3.2078]
[1754333120386,1.7816,3675.8,3675.7,3.5188]
[1754333120787,1.7816,3675.8,3675.7,4.6651]
[1754333120986,1.7816,3675.8,3675.7,5.2184]
[1754333121875,1.7816,3675.8,3675.7,4.6651]
[1754333122081,1.7816,3675.8,3675.7,3.943]
[1754333122476,1.7816,3675.8,3675.7,3.5188]
[1754333122881,1.7816,3675.8,3675.7,5.2184]
[1754333123285,1.7816,3675.8,3675.7,4.6651]
[1754333124279,1.7816,3675.8,3675.7,3.943]
[1754333124886,0.544,3675.9,3675.2,4.6651]
[1754333124887,2.32569,3675.3,3675.2,4.6651]
[1754333125984,1.78,3675.3,3675.2,5.1157]
[1754333126387,1.78,3675.3,3675.2,5.6284]
[1754333126881,1.779,3675.3,3675.2,5.6284]
[1754333127082,2.29062,3675.8,3675.7,1.9079]
[1754333127486,2.29062,3675.8,3675.7,1.056]
[1754333127784,2.29062,3675.8,3675.7,0.2941]
[1754333127987,1.25556,3675.5,3675.4,1.9079]
[1754333128188,2.29066,3675.5,3675.4,1.9079]
[1754333129284,2.29069,3675.3,3675.2,3.9334]
[1754333129584,2.29069,3675.3,3675.2,3.2078]
[1754333129787,2.29069,3675.3,3675.2,4.6148]
[1754333129991,2.29069,3675.3,3675.2,5.1157]
[1754333130286,1.7466,3675.3,3675.2,5.6284]
[1754333136290,1.244,3675.5,3675.4,2.4206]
[1754333136588,1.7466,3675.5,3675.4,1.9079]
[1754333137291,1.7466,3675.3,3675.2,3.9334]
[1754333137793,1.7466,3675.3,3675.2,5.1157]
[1754333138292,1.7466,3675.3,3675.2,3.9334]
[1754333138586,1.7466,3675.3,3675.2,3.2078]
[1754333138781,2.29075,3674.9,3674.8,0.2941]
[1754333138984,2.29075,3674.9,3674.7,3.2078]
[1754333139291,1.7466,3674.8,3674.7,3.2078]
[1754333140087,1.7466,3674.8,3674.7,4.6148]
[1754333140294,1.7466,3674.8,3674.7,3.9334]
[1754333140809,1.7466,3674.8,3674.7,3.5019]
[1754333141188,1.7466,3674.8,3674.7,3.2078]
[1754333141384,0.8932,3674.8,3674.7,3.5019]
[1754333141584,0.8932,3674.9,3674.8,2.4206]
[1754333141785,0.54409,3675.3,3675.2,0.3304]
[1754333141996,1.43729,3675.3,3675.2,2.4206]
[1754333142195,2.29075,3675.0,3674.9,1.9079]
[1754333142693,1.7466,3675.0,3674.9,2.4206]
[1754333143997,1.244,3675.0,3674.9,2.4206]
[1754333144496,2.29065,3675.6,3675.5,0.351]
[1754333144697,3.0348709,3675.6,3675.5,1.0766]
[1754333145197,3.0348709,3675.6,3675.5,0.2941]
[1754333145396,3.0348709,3675.6,3675.5,1.9079]
[1754333146298,3.0348709,3675.6,3675.5,1.407]
[1754333147195,3.0348709,3675.6,3675.5,1.9079]
[1754333150593,3.0348709,3675.6,3675.5,1.407]
[1754333150797,3.0348709,3675.6,3675.5,1.9079]
[1754333151797,2.29071,3675.2,3675.1,5.6284]
[1754333152097,1.244,3675.2,3675.1,5.6284]
[1754333152292,0.8932,3675.2,3675.1,5.6284]
[1754333152498,1.7466,3675.2,3675.1,5.6284]
[1754333152696,1.244,3675.2,3675.1,5.6284]
[1754333153394,0.8932,3675.2,3675.1,5.6284]
[1754333154091,0.5441,3675.3,3675.2,0.9755]
[1754333154299,0.5441,3675.3,3675.2,2.4206]
[1754333154794,0.54409,3675.4,3675.2,2.96469]
[1754333154989,3.03506524,3675.7,3675.6,1.4764]
[1754333155194,3.03506524,3675.7,3675.6,1.9079]
[1754333155897,3.03506524,3675.7,3675.6,1.407]
[1754333156298,1.20059,3675.4,3675.3,1.0008]
[1754333156493,2.25729,3675.4,3675.3,1.9621]
[1754333157796,2.25729,3675.4,3675.3,0.3051]
[1754333158210,2.25731,3675.2,3675.1,3.2078]
[1754333158690,1.36019,3675.5,3674.7,3.2078]
[1754333158691,2.25737,3674.8,3674.7,3.2078]
[1754333159294,2.25737,3674.8,3674.7,4.6453]
[1754333159498,2.25737,3674.8,3674.7,3.9496]
[1754333159895,2.25737,3674.8,3674.7,3.2078]
[1754333160295,2.25741,3674.5,3674.4,0.3051]
[1754333160496,2.25741,3674.5,3674.3,3.2078]
[1754333160799,1.7132,3674.4,3674.3,5.1699]
[1754333161200,1.7132,3674.4,3674.3,5.6586]
[1754333161797,1.7132,3674.4,3674.3,3.5129]
[1754333162299,1.7132,3674.4,3674.3,3.9496]
[1754333162494,1.7132,3674.4,3674.3,4.6453]
[1754333162699,1.7132,3674.4,3674.3,5.1699]
[1754333163208,1.7132,3674.4,3674.3,5.6586]
[1754333164896,1.1816,3674.4,3674.3,5.6586]
[1754333165296,1.7132,3674.4,3674.3,5.1699]
[1754333166304,1.7132,3674.4,3674.3,4.6453]
[1754333166507,1.7132,3674.4,3674.3,3.2078]
[1754333166700,1.7132,3674.4,3674.3,3.5129]
[1754333166897,1.7132,3674.4,3674.3,3.9496]
[1754333167403,1.7132,3674.4,3674.3,4.6453]
[1754333167603,1.7132,3674.4,3674.3,3.2078]
[1754333167994,0.8533,3674.3,3674.2,0.3051]
[1754333168202,0.87258,3674.1,3674.0,0.6472]
[1754333168402,1.20078,3674.1,3674.0,1.9621]
[1754333168810,2.25748,3674.1,3674.0,1.9621]
[1754333169396,2.25748,3674.1,3674.0,1.4375]
[1754333169602,2.25748,3674.1,3674.0,0.3051]
[1754333171304,1.06938,3674.1,3674.0,2.4508]
[1754333171508,0.8534,3674.1,3674.0,2.4508]
[1754333171702,4.56825,3674.8,3674.0,1.7551]
[1754333171902,1.7132,3674.7,3674.6,1.0008]
[1754333172101,2.25738,3674.7,3674.6,1.0008]
[1754333172408,2.25738,3674.7,3674.6,1.0954]
[1754333172706,2.25738,3674.7,3674.6,0.7418]
[1754333172904,2.25738,3674.7,3674.6,0.3051]
[1754333173805,0.54428,3674.1,3674.0,0.6472]
[1754333174005,2.25748,3674.1,3674.0,1.5254]
[1754333174512,1.72585,3674.3,3674.2,2.4508]
[1754333174706,1.06933,3674.4,3674.3,1.45]
[1754333175005,0.5251,3674.4,3674.3,2.4508]
[1754333175201,0.54422,3674.5,3674.3,5.6586]
[1754333175401,0.3283,3674.6,3674.5,1.0008]
[1754333175605,0.5251,3674.6,3674.5,2.4508]
[1754333176104,1.7132,3674.6,3674.5,2.4508]
[1754333176708,1.7132,3674.4,3674.3,4.7332]
[1754333176913,1.7132,3674.4,3674.3,0.3051]
[1754333177299,1.7132,3674.4,3674.3,1.4375]
[1754333177505,1.7132,3674.4,3674.3,1.0954]
[1754333177802,1.7132,3674.4,3674.3,0.3051]
[1754333178205,0.6565,3674.1,3674.0,0.7418]
[1754333178404,1.7132,3674.1,3674.0,0.7418]
[1754333178711,1.7132,3674.1,3674.0,0.3051]
[1754333178905,2.25747,3674.1,3674.0,0.3051]
[1754333179712,2.25747,3674.1,3674.0,0.7418]
[1754333179906,2.25747,3674.1,3673.9,3.2078]
[1754333180213,1.7132,3674.0,3673.9,3.2078]
[1754333180511,1.7132,3674.0,3673.9,3.5129]
[1754333180910,1.7132,3674.0,3673.9,5.1699]
[1754333182710,2.25741,3674.5,3674.4,1.9621]
[1754333185914,1.72581,3674.5,3674.4,2.4607]
[1754333186111,2.20691,3674.5,3674.4,1.9621]
[1754333186909,1.38131,3674.5,3674.4,2.4607]
[1754333187114,2.18621,3674.5,3674.4,2.4607]
[1754333188316,0.8371,3674.5,3674.4,2.4607]
[1754333188518,0.4918,3674.5,3674.4,2.4607]
[1754333189015,0.8371,3674.5,3674.4,2.4607]
[1754333190316,1.642,3674.5,3674.4,2.4607]
[1754333191514,1.642,3674.5,3674.4,1.9621]
[1754333191711,0.3453,3674.2,3673.9,3.2078]
[1754333191917,2.18625,3674.2,3674.1,0.7335]
[1754333192617,2.18625,3674.2,3674.1,1.9376]
[1754333193813,0.4918,3674.2,3674.1,2.4362]
[1754333194016,5.87295499,3675.0,3674.9,0.2856]
[1754333194324,5.64433211,3675.0,3674.9,1.9376]
[1754333194721,6.13613211,3675.0,3674.9,1.9376]
[1754333195024,6.13613211,3675.0,3674.9,1.4069]
[1754333195522,2.92833211,3675.0,3674.9,1.4069]
[1754333196324,2.92833211,3675.0,3674.9,1.9376]
[1754333198830,3.15437999,3675.0,3674.9,1.9376]
[1754333199028,3.15438192,3675.0,3674.9,1.9376]
[1754333199731,3.15438192,3675.0,3674.9,2.4362]
[1754333200726,2.12914192,3675.0,3674.9,2.4362]
[1754333201030,0.27229211,3675.0,3674.9,2.4362]
[1754333201228,0.71781406,3675.4,3675.3,1.50309]
[1754333201531,1.93098406,3675.5,3675.4,2.4362]
[1754333201732,2.49627,3675.5,3675.4,2.4362]
[1754333201934,2.94667,3675.5,3675.4,2.4362]
[1754333202424,1.1609,3675.5,3675.4,2.4362]
[1754333202629,0.8371,3675.5,3675.4,2.4362]
[1754333202828,0.88932,3675.8,3675.7,0.3259]
[1754333203130,2.94662,3675.8,3675.7,2.4362]
[1754333204031,1.69422,3675.8,3675.7,1.9376]
[1754333204231,2.18602,3675.8,3675.7,2.4362]
[1754333204631,2.94662,3675.8,3675.7,2.4362]
[1754333205130,1.03582,3675.8,3675.7,2.4362]
[1754333205436,1.70492,3675.8,3675.7,2.4362]
[1754333205731,2.18602,3675.8,3675.7,2.4362]
[1754333206433,2.63642,3675.8,3675.7,2.4362]
[1754333206633,1.6691,3676.0,3675.9,0.959]
[1754333206835,2.1502,3676.0,3675.9,2.4362]
[1754333207134,1.0,3676.0,3675.9,2.4362]
[1754333207334,1.4918,3676.0,3675.9,2.4362]
[1754333208935,1.0,3676.0,3675.9,2.4362]
[1754333209436,1.4918,3676.0,3675.9,2.4362]
[1754333209629,1.8371,3676.0,3675.9,2.4362]
[1754333210134,1.8371,3676.0,3675.5,3.2078]
[1754333210135,2.94665,3675.6,3675.5,4.6147]
[1754333210628,2.94665,3675.6,3675.5,5.1454]
[1754333210835,2.94665,3675.6,3675.5,4.6147]
[1754333211028,1.17809,3675.3,3675.2,0.4479]
[1754333211229,1.17809,3675.3,3675.1,3.2078]
[1754333211230,2.94669,3675.3,3675.1,3.2078]
[1754333211428,2.4026,3675.2,3675.1,3.4934]
[1754333211629,2.4026,3675.2,3675.1,4.1668]
[1754333211825,2.4026,3675.2,3675.1,5.1454]
[1754333212033,2.4026,3675.2,3675.1,4.6147]
[1754333212333,2.4026,3675.2,3675.1,5.1454]
[1754333212829,1.4711,3675.2,3675.1,5.644]
[1754333213333,1.9522,3675.2,3675.1,5.644]
[1754333213533,1.4711,3675.2,3675.1,5.644]
[1754333213833,2.4026,3675.2,3675.1,5.644]
[1754333214037,0.54409,3675.3,3675.2,2.4362]
[1754333214237,0.54408,3675.4,3675.2,2.9803]
[1754333214437,0.4811,3675.6,3675.5,2.1103]
[1754333214438,1.65915,3675.6,3675.5,2.1103]
[1754333214734,0.54405,3675.6,3675.5,2.4362]
[1754333214932,1.03585,3675.6,3675.5,2.4362]
[1754333215128,1.38115,3675.6,3675.5,2.4362]
[1754333215330,2.52329,3676.0,3675.9,0.959]
[1754333215532,3.01509,3676.0,3675.9,1.9376]
[1754333215935,3.99529,3676.0,3675.9,1.9376]
[1754333217538,3.99529,3676.0,3675.9,1.4069]
[1754333217732,3.99529,3676.0,3675.9,0.2856]
[1754333217933,3.99529,3676.0,3675.9,1.3651]
[1754333219135,2.9386,3676.0,3675.9,2.374]
[1754333219441,3.4057,3676.0,3675.9,2.374]
[1754333220241,3.4057,3676.0,3675.9,1.8669]
[1754333220534,3.4057,3676.0,3675.9,1.1339]
[1754333220740,2.4057,3675.7,3675.6,1.8855]
[1754333221937,1.6504,3675.7,3675.6,2.3926]
[1754333222240,2.4057,3675.7,3675.6,2.3926]
[1754333222441,2.4057,3675.7,3675.6,1.8855]
[1754333223134,2.4057,3675.7,3675.6,0.3042]
[1754333223328,2.4057,3675.7,3675.6,1.8855]
[1754333223834,1.0,3676.0,3675.6,2.42954]
[1754333224042,0.8189,3675.7,3675.6,1.98744]
[1754333224443,0.8189,3675.7,3675.6,1.4434]
[1754333224643,1.332,3675.7,3675.6,2.3926]
[1754333225142,1.6504,3675.7,3675.6,2.3926]
[1754333225333,1.6504,3675.7,3675.6,1.8855]
[1754333225837,1.6504,3675.7,3675.6,2.3926]
[1754333226144,1.02891,3675.9,3675.8,0.9363]
[1754333226339,1.36291,3675.9,3675.8,2.3926]
[1754333227045,1.8189,3676.0,3675.9,2.3926]
[1754333227245,2.1373,3676.0,3675.9,2.3926]
[1754333227444,2.6504,3676.0,3675.9,2.3926]
[1754333228841,1.0,3676.0,3675.9,5.6004]
[1754333229944,0.54387,3676.8,3676.7,2.42938]
[1754333230242,2.38428659,3676.8,3676.7,2.3926]
[1754333230548,1.55278659,3676.8,3676.7,2.3926]
[1754333230749,0.73388659,3676.8,3676.7,5.6004]
[1754333231047,0.05294659,3677.1,3677.0,2.93644]
[1754333231242,0.97081499,3677.5,3677.4,1.48008]
[1754333231442,0.97081499,3677.5,3677.4,6.14418]
[1754333231641,0.97081499,3677.7,3677.6,0.54375]
[1754333231852,0.97081499,3677.7,3677.6,1.98715]
[1754333232049,0.97081499,3677.7,3677.6,2.93635]
[1754333232343,0.4849,3677.9,3677.8,1.48002]
[1754333232744,0.4849,3677.9,3677.8,4.68782]
[1754333232944,1.02861,3677.9,3677.8,6.14412]
[1754333233144,0.4849,3677.9,3677.8,6.14412]
[1754333233347,0.8189,3677.9,3677.8,6.14412]
[1754333233756,0.8189,3677.9,3677.8,5.6004]
[1754333236157,0.8189,3677.9,3677.8,6.3665696]
[1754333236458,1.36261,3677.9,3677.8,5.8228496]
[1754333236750,1.95135,3678.3,3678.2,0.9363]
[1754333237061,1.48425,3678.3,3678.2,2.6150496]
[1754333237356,2.48225,3678.3,3678.2,2.6150496]
[1754333237558,2.94935,3678.3,3678.2,2.6150496]
[1754333237951,2.48225,3678.3,3678.2,2.1079496]
[1754333238154,2.94935,3678.3,3678.2,0.2224496]
[1754333240760,1.48431,3677.9,3677.8,3.2078]
[1754333241061,2.4057,3677.5,3677.4,5.6004]
[1754333241261,2.4057,3677.5,3677.4,6.14418]
[1754333241457,2.4057,3677.5,3677.4,3.2078]
[1754333241665,2.4057,3677.5,3677.4,5.6004]
[1754333242665,2.4057,3677.5,3677.4,5.0933]
[1754333242865,2.4057,3677.5,3677.4,5.6004]
[1754333243065,1.9386,3677.5,3677.4,5.6004]
[1754333243468,2.4057,3677.5,3677.4,5.6004]
[1754333243764,0.6524,3677.5,3677.4,5.6004]
[1754333244067,3.2078,3678.6,3677.5,0.4474]
[1754333244263,0.2882,3678.6,3678.5,2.3926]
[1754333244966,0.6222,3678.6,3678.5,2.3926]
[1754333245169,0.6222,3678.6,3678.5,2.93622]
[1754333245170,0.9406,3678.6,3678.5,2.93622]
[1754333245364,2.4057,3678.6,3678.5,2.93622]
[1754333246070,1.9153,3678.6,3678.5,2.93622]
[1754333246268,2.4091,3678.6,3678.5,2.93622]
[1754333246874,2.4091,3678.6,3678.5,2.42912]
[1754333247777,2.4091,3678.6,3678.5,1.8855]
[1754333248072,2.4091,3678.3,3678.2,3.2078]
[1754333248468,2.4091,3678.3,3678.2,3.8346]
[1754333248669,2.4091,3678.3,3678.2,4.6043]
[1754333248967,2.4091,3678.3,3678.2,5.093]
[1754333249168,0.8249,3678.3,3678.2,5.6006]
[1754333249366,1.6566,3678.3,3678.2,5.6006]
[1754333249572,1.9509,3678.3,3678.2,5.6006]
[1754333249771,2.4091,3678.3,3678.2,5.6006]
[1754333250672,2.4091,3678.3,3678.2,3.2078]
[1754333250873,2.4091,3678.2,3678.1,0.54367]
[1754333251663,1.50987,3678.2,3677.9,0.54371]
[1754333251869,2.4091,3677.9,3677.8,1.94021]
[1754333252164,2.4091,3677.9,3677.7,0.54373]
[1754333252165,0.9662,3677.9,3677.7,0.54373]
[1754333252369,2.4091,3677.8,3677.7,0.54373]
[1754333252570,2.4091,3677.8,3677.7,1.48843]
[1754333252766,2.4091,3677.8,3677.7,2.64614481]
[1754333253375,2.4091,3677.8,3677.7,2.64620939]
[1754333253972,2.4091,3677.8,3677.7,3.15380939]
[1754333254364,2.4091,3678.2,3678.1,1.48836]
[1754333254576,2.4091,3678.2,3678.1,2.15743939]
[1754333254776,2.4091,3678.2,3678.1,1.70563939]
[1754333256375,2.4091,3678.2,3678.1,2.15743939]
[1754333257178,2.4091,3678.2,3678.1,2.64613939]
[1754333257379,2.4091,3678.2,3678.1,3.15373939]
[1754333258178,2.4091,3678.2,3678.1,0.21727939]
[1754333258477,2.4091,3678.2,3678.1,2.61007939]
[1754333259068,1.4571,3678.2,3678.1,2.61007939]
[1754333259272,1.1628,3678.2,3678.1,2.61007939]
[1754333259975,1.4571,3678.2,3678.1,2.61007939]
[1754333260179,2.4091,3678.2,3678.1,2.61007939]
[1754333260678,2.4091,3678.2,3678.1,0.21727939]
[1754333263080,2.4091,3678.2,3678.1,1.61377939]
[1754333263277,1.35895,3678.8,3678.1,0.21727939]
[1754333263580,2.4091,3678.3,3678.2,2.61007939]
[1754333264979,2.4091,3678.3,3678.2,2.61143207]
[1754333267874,2.4091,3678.3,3678.2,2.61167294]
[1754333270779,2.4091,3678.3,3678.2,0.21887294]
[1754333271776,2.4091,3678.3,3678.2,0.51507294]
[1754333271974,1.0,3679.0,3678.3,1.35913]
[1754333272180,1.0,3679.0,3677.8,2.71859]
[1754333272181,1.0,3679.0,3678.9,2.93636]
[1754333272483,1.0,3679.0,3678.9,3.15523294]
[1754333273884,1.0,3679.0,3678.9,3.15205566]
[1754333274278,1.0,3679.0,3678.9,3.15205225]
[1754333276182,1e-08,3679.0,3678.9,3.15205225]
[1754333279181,0.32020001,3679.0,3678.9,3.15205225]
[1754333279385,1.41410001,3679.0,3678.9,3.15205225]
[1754333279579,2.36180001,3679.0,3678.9,3.15205225]
[1754333281285,1.57350001,3679.0,3678.9,3.15205225]
[1754333281688,2.36180001,3679.0,3678.9,3.15205225]
[1754333282280,1e-08,3679.0,3678.9,1.70395225]
[1754333282486,0.3199,3679.2,3679.1,1.45403]
[1754333282680,1.8809,3679.9,3679.8,1.45393]
[1754333282881,1.8809,3679.9,3679.8,1.66962225]
[1754333283082,1.8809,3679.9,3679.8,2.60562225]
[1754333284188,1.8809,3679.9,3679.8,1.83982225]
[1754333284585,2.3618,3679.9,3679.8,1.83982225]
[1754333286381,2.3618,3679.9,3679.8,2.29362225]
[1754333286585,2.3618,3679.9,3679.8,1.83982225]
[1754333286787,2.3618,3679.9,3679.8,3.11042225]
[1754333287485,1.8809,3679.9,3679.8,3.11042225]
[1754333288284,0.946,3679.9,3679.8,3.11042225]
[1754333288784,0.4809,3680.1,3680.0,2.8947]
[1754333288785,1.8809,3680.1,3680.0,2.8947]
[1754333288991,1.8809,3680.1,3680.0,3.11039225]
[1754333289290,2.3618,3680.1,3680.0,0.75909225]
[1754333289988,2.3618,3680.1,3680.0,1.83979225]
[1754333290584,2.3618,3680.1,3680.0,1.83886367]
[1754333291292,2.3618,3680.1,3680.0,2.15086367]
[1754333291490,2.3618,3680.1,3680.0,0.75816367]
[1754333291994,2.3618,3680.1,3680.0,0.21476367]
[1754333292192,0.946,3679.8,3679.7,0.54343]
[1754333292393,2.3618,3679.8,3679.7,0.54343]
[1754333292693,2.3618,3679.6,3679.5,3.75127]
[1754333292889,1.35847,3680.1,3679.1,3.75132]
[1754333292890,0.946,3679.2,3679.1,3.75132]
[1754333293097,2.3618,3679.2,3679.1,2.6949]
[1754333294085,0.54353,3679.1,3678.8,0.54357]
[1754333294291,2.3618,3678.9,3678.8,0.54357]
[1754333295094,3.2078,3679.5,3678.6,4.1438]
[1754333295095,1.895,3678.7,3678.6,3.2078]
[1754333295395,2.3618,3678.5,3678.4,0.54363]
[1754333295595,1.4158,3678.4,3678.3,0.54364]
[1754333295898,2.3618,3678.4,3678.3,0.54364]
[1754333296295,2.3618,3678.4,3678.3,1.33374]
[1754333296495,2.3618,3678.4,3678.3,1.93634]
[1754333296696,2.3618,3678.4,3678.3,2.44114]
[1754333296891,1.8809,3678.4,3678.3,2.44114]
[1754333297097,2.3618,3678.4,3678.3,2.89494]
[1754333298602,2.3618,3678.4,3678.3,2.3513]
[1754333298803,2.90545,3678.3,3678.2,3.2078]
[1754333299491,2.3618,3678.3,3678.2,3.2078]
[1754333299900,2.42006,3678.2,3678.0,2.4388438]
[1754333300098,1.8764,3678.1,3678.0,2.4388438]
[1754333301001,1.8764,3678.1,3678.0,4.7901438]
[1754333301404,1.8764,3678.1,3678.0,2.3513]
[1754333301704,0.3199,3678.1,3678.0,2.3513]
[1754333301897,0.6401,3678.1,3678.0,2.3513]
[1754333302103,1.8764,3678.1,3678.0,2.3513]
[1754333303097,0.6401,3678.1,3678.0,2.3513]
[1754333303501,1.1082,3678.1,3678.0,2.3513]
[1754333303702,1.3955,3678.1,3678.0,2.3513]
[1754333304005,1.8764,3678.1,3678.0,2.3513]
[1754333304300,1.8764,3678.1,3678.0,0.2906]
[1754333304507,1.8764,3677.9,3677.8,3.2078]
[1754333305002,1.7659,3677.5,3677.4,3.2078]
[1754333305200,1.8764,3677.1,3677.0,3.4984]
[1754333305500,1.8764,3677.1,3677.0,3.2078]
[1754333306198,1.8764,3677.1,3677.0,3.8063]
[1754333306505,1.8764,3677.1,3677.0,4.3042]
[1754333306701,1.8764,3677.1,3676.5,18.834]
[1754333306702,0.54391,3676.5,3676.2,2.43981353]
[1754333307005,0.88517,3676.1,3676.0,2.32828532]
[1754333307206,0.3423,3676.1,3676.0,4.12248532]
[1754333307504,0.3405,3676.1,3676.0,2.4291]
[1754333308500,0.3423,3676.1,3676.0,2.4291]
[1754333309003,0.3423,3676.1,3676.0,1.1328]
[1754333309299,0.3423,3676.1,3676.0,2.4291]
[1754333310298,3.75176,3676.3,3676.0,2.4291]